bitfinex/quotes_BTCUSD_20251110
["timestamp","ask_amount","ask_price","bid_price","bid_amount"]
[1762770325842,2.17793186,106320.0,106310.0,1e-08]
[1762770326080,2.19713482,106320.0,106310.0,1e-08]
[1762770326824,2.19513482,106320.0,106310.0,1e-08]
[1762770327030,2.19213482,106320.0,106310.0,1e-08]
[1762770327249,2.18513483,106320.0,106310.0,1e-08]
[1762770327525,0.78024479,106320.0,106310.0,1e-08]
[1762770327728,0.30523069,106320.0,106310.0,0.01156001]
[1762770328556,0.64794069,106320.0,106310.0,1e-08]
[1762770328777,0.68412297,106320.0,106310.0,1e-08]
[1762770328927,0.64994069,106320.0,106310.0,1e-08]
[1762770329118,0.73774379,106320.0,106310.0,1e-08]
[1762770329315,0.77392607,106320.0,106310.0,1e-08]
[1762770329527,0.77092607,106320.0,106310.0,1e-08]
[1762770329945,0.77192607,106320.0,106310.0,1e-08]
[1762770335825,0.77187655,106320.0,106310.0,1e-08]
[1762770338822,1.10320383,106320.0,106310.0,1e-08]
[1762770343788,0.68407345,106320.0,106310.0,1e-08]
[1762770343996,0.08616954,106320.0,106310.0,0.58055932]
[1762770344235,0.02047577,106320.0,106310.0,0.90256362]
[1762770344432,0.08616954,106320.0,106310.0,0.90256362]
[1762770344649,0.08616954,106320.0,106310.0,0.92256362]
[1762770344851,0.08616954,106320.0,106310.0,0.59123634]
[1762770345047,0.08616954,106320.0,106310.0,0.90256362]
[1762770345256,0.01947577,106320.0,106310.0,0.90256362]
[1762770345615,0.26505398,106340.0,106330.0,0.18809367]
[1762770345881,0.60559234,106340.0,106330.0,0.54504095]
[1762770346077,0.64286876,106340.0,106330.0,0.56960095]
[1762770346717,0.64286876,106340.0,106330.0,0.57060095]
[1762770347252,0.64286876,106340.0,106330.0,0.38250728]
[1762770347923,0.71384269,106340.0,106330.0,0.34228728]
[1762770348445,0.71384269,106340.0,106330.0,0.001]
[1762770351231,0.71384269,106340.0,106330.0,0.00073]
[1762770351636,1.04516997,106340.0,106330.0,0.00073]
[1762770352296,1.64529369,106340.0,106330.0,0.00073]
[1762770352499,1.97662097,106340.0,106330.0,0.00073]
[1762770352702,2.30794825,106340.0,106330.0,0.00073]
[1762770352903,2.30841843,106340.0,106330.0,0.00073]
[1762770353217,0.22429364,106320.0,106310.0,0.34357728]
[1762770353413,0.22429364,106320.0,106310.0,0.53170633]
[1762770353414,0.30126741,106320.0,106310.0,0.53170633]
[1762770353963,0.30126741,106320.0,106310.0,0.57306633]
[1762770354929,0.30126741,106320.0,106310.0,0.57506633]
[1762770355377,0.30126741,106320.0,106310.0,0.57706633]
[1762770355587,0.31692741,106320.0,106310.0,0.34757728]
[1762770355737,0.40140688,106320.0,106310.0,0.34757728]
[1762770356083,0.40140688,106320.0,106310.0,0.53570633]
[1762770356282,0.41892882,106320.0,106310.0,0.34757728]
[1762770356481,0.40140688,106320.0,106310.0,0.34757728]
[1762770356672,0.40140688,106320.0,106310.0,0.004]
[1762770356874,0.44254866,106320.0,106310.0,0.004]
[1762770357444,0.41892866,106320.0,106310.0,0.004]
[1762770359100,0.33444919,106320.0,106310.0,0.33532728]
[1762770359306,0.31692741,106320.0,106310.0,0.004]
[1762770359498,0.34054741,106320.0,106310.0,0.004]
[1762770361409,0.31692741,106320.0,106310.0,0.19212905]
[1762770361767,0.30126741,106320.0,106310.0,0.38893728]
[1762770362812,0.30126741,106320.0,106310.0,0.36420728]
[1762770363273,0.30126741,106320.0,106310.0,0.55233633]
[1762770363476,0.10187605,106320.0,106310.0,0.57706633]
[1762770363648,0.28998741,106320.0,106310.0,0.57706633]
[1762770363856,0.28998741,106320.0,106310.0,0.24573905]
[1762770364054,0.28998741,106320.0,106310.0,0.57706633]
[1762770364552,0.28998741,106320.0,106310.0,0.38893728]
[1762770364948,0.28998741,106320.0,106310.0,0.57706633]
[1762770365962,0.10187605,106320.0,106310.0,0.57706633]
[1762770368322,0.28998741,106320.0,106310.0,0.57706633]
[1762770369520,0.10187605,106320.0,106310.0,0.57706633]
[1762770369871,0.28998741,106320.0,106310.0,0.57706633]
[1762770371352,0.10187605,106320.0,106310.0,0.57706633]
[1762770371753,0.28998741,106320.0,106310.0,0.57706633]
[1762770371975,0.10187605,106320.0,106310.0,0.57706633]
[1762770372376,0.30778602,106340.0,106310.0,0.57706633]
[1762770372576,0.51109367,106330.0,106320.0,0.58235318]
[1762770372779,0.59165033,106330.0,106320.0,0.05361]
[1762770372976,0.59165033,106330.0,106320.0,0.38493728]
[1762770373360,0.59165033,106330.0,106320.0,0.57304864]
[1762770373771,0.59165033,106330.0,106320.0,0.38493728]
[1762770373975,0.64221033,106330.0,106320.0,0.01225]
[1762770374165,0.65977003,106330.0,106320.0,0.01325]
[1762770374581,0.63615003,106330.0,106320.0,0.01325]
[1762770375130,0.65977003,106330.0,106320.0,0.01325]
[1762770375493,0.65977003,106330.0,106320.0,0.001]
[1762770375494,0.99109731,106330.0,106320.0,0.001]
[1762770375870,1.78745831,106330.0,106320.0,0.001]
[1762770376083,1.31161531,106330.0,106320.0,0.001]
[1762770376441,1.30109231,106330.0,106320.0,0.001]
[1762770380790,1.65826097,106330.0,106320.0,0.001]
[1762770381122,1.35594924,106330.0,106320.0,0.001]
[1762770381320,1.33571456,106330.0,106320.0,0.001]
[1762770381632,1.66143311,106330.0,106320.0,0.001]
[1762770381832,1.66190334,106330.0,106320.0,0.001]
[1762770382242,1.31034341,106330.0,106320.0,0.001]
[1762770384098,1.30156254,106330.0,106320.0,0.001]
[1762770384721,1.3098699,106330.0,106320.0,0.001]
[1762770385105,1.31033561,106330.0,106320.0,0.001]
[1762770386112,1.30155802,106330.0,106320.0,0.001]
[1762770387473,1.30108779,106330.0,106320.0,0.001]
[1762770388034,1.63241507,106330.0,106320.0,0.001]
[1762770388238,1.71643058,106330.0,106320.0,0.001]
[1762770388760,1.72019713,106330.0,106320.0,0.001]
[1762770389065,0.51112905,106310.0,106300.0,0.00023311]
[1762770389298,1.26113817,106310.0,106300.0,0.00023311]
[1762770389496,1.26160844,106310.0,106300.0,0.00023311]
[1762770389633,1.26160849,106310.0,106300.0,0.00023311]
[1762770390556,0.71783021,106310.0,106300.0,0.00123311]
[1762770390755,1.04914358,106310.0,106300.0,0.00123311]
[1762770390994,0.7178163,106310.0,106300.0,0.00123311]
[1762770391597,0.64427242,106310.0,106300.0,0.00123311]
[1762770391843,0.62141242,106310.0,106300.0,0.01293311]
[1762770392177,0.57687083,106310.0,106300.0,0.38274569]
[1762770392380,0.61305311,106310.0,106300.0,0.05133311]
[1762770394438,0.62830311,106310.0,106300.0,0.01293311]
[1762770394640,0.68606128,106310.0,106300.0,0.01293311]
[1762770402188,0.7035978,106310.0,106300.0,0.00123311]
[1762770405448,1.74267338,106310.0,106300.0,0.00123311]
[1762770406013,1.3712427,106310.0,106300.0,0.00123311]
[1762770406265,0.78523995,106310.0,106300.0,0.00123311]
[1762770408070,0.66916995,106310.0,106300.0,0.00123311]
[1762770408295,0.66869963,106310.0,106300.0,0.00123311]
[1762770408574,0.63105995,106310.0,106300.0,0.05133311]
[1762770409433,0.63058963,106310.0,106300.0,0.05133311]
[1762770409640,0.63058963,106310.0,106300.0,0.58021984]
[1762770409849,0.63058963,106310.0,106300.0,0.38274569]
[1762770411238,0.63058963,106310.0,106300.0,0.57089244]
[1762770411471,0.6306205,106310.0,106300.0,0.38274569]
[1762770411842,0.6306205,106310.0,106300.0,0.23947986]
[1762770411993,0.6306205,106310.0,106300.0,0.05133311]
[1762770414457,0.6306205,106310.0,106300.0,0.23947986]
[1762770414668,0.71595632,106310.0,106300.0,0.23947986]
[1762770414859,0.71595632,106310.0,106300.0,0.05133311]
[1762770415059,0.71595632,106310.0,106300.0,0.23947986]
[1762770415975,0.71595632,106310.0,106300.0,0.05133311]
[1762770416943,0.71595632,106310.0,106300.0,0.23947986]
[1762770417387,0.63062692,106310.0,106300.0,0.57089244]
[1762770417593,0.63062692,106310.0,106300.0,0.05133311]
[1762770417843,0.63062692,106310.0,106300.0,0.23947986]
[1762770418188,0.59444464,106310.0,106300.0,0.57089244]
[1762770421662,0.59443935,106310.0,106300.0,0.57089244]
[1762770422357,0.63062163,106310.0,106300.0,0.02830311]
[1762770422565,0.64719163,106310.0,106300.0,0.01293311]
[1762770422905,0.67213163,106310.0,106300.0,0.01293311]
[1762770423106,0.64719163,106310.0,106300.0,0.01293311]
[1762770423893,0.64719163,106310.0,106300.0,0.20107986]
[1762770424083,0.64719163,106310.0,106300.0,0.01293311]
[1762770424606,0.77023336,106310.0,106300.0,0.00123311]
[1762770426357,0.64719163,106310.0,106300.0,0.20109986]
[1762770426600,0.63062163,106310.0,106300.0,0.57340244]
[1762770427024,0.63062163,106310.0,106300.0,0.24198986]
[1762770429271,0.63062163,106310.0,106300.0,0.05384311]
[1762770429636,0.63062163,106310.0,106300.0,0.24198986]
[1762770431611,0.63062163,106310.0,106300.0,0.05384311]
[1762770432397,0.63062163,106310.0,106300.0,0.24198986]
[1762770432968,0.63062163,106310.0,106300.0,0.05384311]
[1762770434644,0.63062163,106310.0,106300.0,0.02915311]
[1762770435819,0.69010437,106310.0,106300.0,0.02915311]
[1762770436031,0.70667437,106310.0,106300.0,0.01295311]
[1762770437817,0.73161437,106310.0,106300.0,0.01295311]
[1762770439558,0.64719163,106310.0,106300.0,0.01295311]
[1762770439920,0.64719163,106310.0,106300.0,0.20109986]
[1762770440102,0.63062163,106310.0,106300.0,0.24198986]
[1762770441086,0.63062163,106310.0,106300.0,0.02915311]
[1762770441232,0.64719163,106310.0,106300.0,0.02915311]
[1762770441419,0.73311025,106310.0,106300.0,0.02915311]
[1762770441833,0.73311025,106310.0,106300.0,0.01295311]
[1762770442851,0.878682,106300.0,106280.0,0.06813861]
[1762770443064,0.51118216,106280.0,106270.0,0.10188811]
[1762770443264,0.64834916,106280.0,106270.0,0.0002]
[1762770443473,1.02213511,106280.0,106270.0,0.0002]
[1762770443682,1.02260485,106280.0,106270.0,0.0002]
[1762770444355,1.02260485,106280.0,106270.0,0.0012]
[1762770444758,1.02258851,106280.0,106270.0,0.0012]
[1762770446333,1.12069024,106280.0,106270.0,0.0012]
[1762770447263,0.78927824,106280.0,106270.0,0.0012]
[1762770447458,1.12069082,106280.0,106270.0,0.0012]
[1762770448745,1.12069082,106280.0,106270.0,0.00189954]
[1762770449095,1.10316379,106280.0,106270.0,0.00189954]
[1762770451056,1.10316379,106280.0,106270.0,0.00089954]
[1762770451205,1.10469347,106280.0,106270.0,0.00089954]
[1762770451405,1.10569347,106280.0,106270.0,0.00089954]
[1762770452525,1.14187575,106280.0,106270.0,0.00089954]
[1762770452734,1.18966676,106280.0,106270.0,0.00089954]
[1762770452926,1.49186997,106280.0,106270.0,0.00089954]
[1762770454029,0.95279357,106280.0,106270.0,0.00089954]
[1762770454200,0.91048256,106280.0,106270.0,0.00089954]
[1762770454612,0.93531256,106280.0,106270.0,0.00089954]
[1762770457710,1.26656978,106280.0,106270.0,0.00089954]
[1762770457924,1.26704023,106280.0,106270.0,0.00089954]
[1762770458221,1.36467151,106280.0,106270.0,0.00089954]
[1762770458470,1.38214127,106280.0,106270.0,0.00089954]
[1762770459287,1.38261172,106280.0,106270.0,0.00089954]
[1762770460400,1.41159345,106280.0,106270.0,0.00089954]
[1762770461975,1.31349172,106280.0,106270.0,0.00089954]
[1762770462566,1.96439372,106280.0,106270.0,0.00089954]
[1762770465098,1.96392327,106280.0,106270.0,0.00089954]
[1762770466330,1.96439372,106280.0,106270.0,0.00089954]
[1762770466891,1.87107472,106280.0,106270.0,0.00089954]
[1762770467087,1.84659472,106280.0,106270.0,0.00089954]
[1762770467477,0.92225338,106280.0,106270.0,0.00089954]
[1762770467685,1.58570872,106280.0,106270.0,0.00089954]
[1762770467849,1.68381045,106280.0,106270.0,0.00089954]
[1762770468912,1.68383906,106280.0,106270.0,0.00089954]
[1762770471201,1.70403156,106280.0,106270.0,0.00089954]
[1762770472034,1.70356111,106280.0,106270.0,0.00089954]
[1762770472164,1.71233605,106280.0,106270.0,0.00089954]
[1762770472379,2.04406372,106280.0,106270.0,0.00089954]
[1762770472591,1.68382477,106280.0,106270.0,0.00089954]
[1762770472790,1.71208665,106280.0,106270.0,0.00089954]
[1762770473053,1.74106838,106280.0,106270.0,0.00089954]
[1762770473253,1.76328325,106280.0,106270.0,0.00089954]
[1762770473555,2.09801035,106280.0,106270.0,0.00089954]
[1762770473773,2.1318499,106280.0,106270.0,0.00089954]
[1762770473901,2.13138002,106280.0,106270.0,0.00089954]
[1762770474108,1.79965235,106280.0,106270.0,0.00089954]
[1762770474523,1.80012231,106280.0,106270.0,0.00089954]
[1762770474725,1.77028276,106280.0,106270.0,0.00089954]
[1762770476664,1.74130103,106280.0,106270.0,0.00089954]
[1762770476890,1.77028276,106280.0,106270.0,0.00089954]
[1762770479881,1.74130103,106280.0,106270.0,0.00089954]
[1762770481923,1.77028276,106280.0,106270.0,0.00089954]
[1762770482425,1.7698128,106280.0,106270.0,0.00089954]
[1762770482736,2.10201043,106280.0,106270.0,0.00089954]
[1762770482873,1.74130103,106280.0,106270.0,0.00089954]
[1762770483083,2.0730287,106280.0,106270.0,0.00089954]
[1762770483511,2.13184998,106280.0,106270.0,0.00089954]
[1762770483770,2.13138002,106280.0,106270.0,0.00089954]
[1762770483954,1.80012231,106280.0,106270.0,0.00089954]
[1762770485338,1.77114058,106280.0,106270.0,0.00089954]
[1762770486947,1.77067062,106280.0,106270.0,1e-08]
[1762770487153,2.13666497,106280.0,106270.0,1e-08]
[1762770487354,2.13619501,106280.0,106270.0,1e-08]
[1762770487556,2.13666497,106280.0,106270.0,1e-08]
[1762770487961,2.146195,106280.0,106270.0,1e-08]
[1762770488158,2.17564652,106280.0,106270.0,1e-08]
[1762770488380,2.54738214,106270.0,106260.0,1e-08]
[1762770488550,3.51638321,106270.0,106260.0,1e-08]
[1762770488968,3.54464897,106270.0,106260.0,1e-08]
[1762770489301,3.58363069,106270.0,106260.0,1e-08]
[1762770489549,1.82987605,106250.0,106240.0,0.0002]
[1762770489752,2.74694755,106250.0,106240.0,0.0002]
[1762770490051,1.64092921,106250.0,106240.0,0.0002]
[1762770490264,1.64092912,106250.0,106240.0,0.0002]
[1762770490394,1.52267489,106250.0,106240.0,0.0002]
[1762770491039,1.55885717,106250.0,106240.0,0.0002]
[1762770491241,1.1344215,106250.0,106240.0,0.0002]
[1762770491419,1.41719317,106250.0,106240.0,0.0002]
[1762770491623,1.41819317,106250.0,106240.0,0.0002]
[1762770491821,1.48983736,106250.0,106240.0,0.0002]
[1762770492220,1.49909331,106250.0,106240.0,0.0002]
[1762770492600,1.31207631,106250.0,106240.0,0.0002]
[1762770493345,0.7319439,106250.0,106240.0,0.0002]
[1762770493505,1.06367157,106250.0,106240.0,0.0002]
[1762770493862,1.08749157,106250.0,106240.0,0.0002]
[1762770494261,1.01584738,106250.0,106240.0,0.0002]
[1762770495055,1.11394911,106250.0,106240.0,0.0002]
[1762770496009,1.1233274,106250.0,106240.0,0.0002]
[1762770496997,1.01584738,106250.0,106240.0,0.0002]
[1762770499247,1.01584738,106250.0,106240.0,0.00089984]
[1762770508892,1.04411429,106250.0,106240.0,0.00089984]
[1762770509604,1.83075729,106250.0,106240.0,0.00089984]
[1762770512134,1.79222103,106250.0,106240.0,0.00089984]
[1762770512333,1.89032276,106250.0,106240.0,0.00089984]
[1762770513093,1.82383277,106250.0,106240.0,0.00089984]
[1762770513257,1.82336303,106250.0,106240.0,0.00089984]
[1762770513866,1.82383326,106250.0,106240.0,0.00089984]
[1762770514063,1.82336303,106250.0,106240.0,0.00089984]
[1762770516298,1.84357408,106250.0,106240.0,0.00089984]
[1762770516703,1.84404427,106250.0,106240.0,0.00089984]
[1762770517088,1.84357408,106250.0,106240.0,0.00089984]
[1762770517466,1.84404427,106250.0,106240.0,0.00089984]
[1762770517673,1.84357408,106250.0,106240.0,0.00089984]
[1762770517879,1.82383322,106250.0,106240.0,0.00089984]
[1762770518011,1.82336303,106250.0,106240.0,0.00089984]
[1762770518215,1.30218349,106250.0,106240.0,0.00089984]
[1762770518533,1.25501149,106250.0,106240.0,0.00089984]
[1762770521514,1.22886149,106250.0,106240.0,0.00089984]
[1762770522734,1.2283913,106250.0,106240.0,0.00089984]
[1762770523685,0.89653462,106250.0,106240.0,0.00089984]
[1762770523899,1.32649303,106250.0,106240.0,0.00089984]
[1762770524956,0.99463635,106250.0,106240.0,0.00089984]
[1762770525186,1.32649303,106250.0,106240.0,0.00089984]
[1762770526683,1.30795003,106250.0,106240.0,0.00089984]
[1762770526901,0.97609335,106250.0,106240.0,0.00089984]
[1762770527132,1.30795003,106250.0,106240.0,0.00089984]
[1762770527534,1.32816186,106250.0,106240.0,0.00089984]
[1762770528252,1.32863182,106250.0,106240.0,0.00089984]
[1762770528525,1.32816186,106250.0,106240.0,0.00089984]
[1762770528767,1.32863182,106250.0,106240.0,0.00089984]
[1762770529179,1.3286321,106250.0,106240.0,0.00089984]
[1762770529829,1.35714359,106250.0,106240.0,0.00089984]
[1762770530030,1.38712321,106250.0,106240.0,0.00089984]
[1762770530819,1.35814148,106250.0,106240.0,0.00089984]
[1762770531021,1.35714359,106250.0,106240.0,0.00089984]
[1762770531567,1.3659142,106250.0,106240.0,0.00089984]
[1762770531695,1.39589382,106250.0,106240.0,0.00089984]
[1762770532393,1.06403714,106250.0,106240.0,0.00089984]
[1762770532595,1.39589382,106250.0,106240.0,0.00089984]
[1762770533644,1.36691209,106250.0,106240.0,0.00089984]
[1762770534009,1.33693247,106250.0,106240.0,0.00089984]
[1762770534890,1.36691209,106250.0,106240.0,0.00089984]
[1762770535186,1.35814148,106250.0,106240.0,0.00089984]
[1762770535945,1.36691147,106250.0,106240.0,0.00089984]
[1762770536596,1.33693185,106250.0,106240.0,0.00089984]
[1762770537224,1.31672002,106250.0,106240.0,0.00089984]
[1762770537865,1.31718998,106250.0,106240.0,0.00089984]
[1762770538082,1.33739646,106250.0,106240.0,0.00089984]
[1762770538498,1.31718998,106250.0,106240.0,0.00089984]
[1762770539142,1.31672002,106250.0,106240.0,0.00089984]
[1762770539692,1.31672002,106250.0,106210.0,0.01258]
[1762770539693,0.22447073,106220.0,106210.0,0.01258]
[1762770539906,0.3170845,106220.0,106210.0,0.01258]
[1762770540103,0.3416645,106220.0,106210.0,0.01258]
[1762770540304,0.67352118,106220.0,106210.0,0.00028]
[1762770540525,0.3416645,106220.0,106210.0,0.00028]
[1762770540725,0.3426645,106220.0,106210.0,0.00328]
[1762770540935,0.34271244,106220.0,106210.0,0.00728]
[1762770541514,0.34271244,106220.0,106210.0,0.00328]
[1762770541774,0.31813244,106220.0,106210.0,0.19158618]
[1762770541939,0.31713244,106220.0,106210.0,0.01269]
[1762770542344,0.31713244,106220.0,106210.0,0.01369]
[1762770542775,0.34171244,106220.0,106210.0,0.00128]
[1762770542979,0.67356912,106220.0,106210.0,0.00128]
[1762770543179,0.34171244,106220.0,106210.0,0.00128]
[1762770544368,0.43185319,106220.0,106210.0,0.00128]
[1762770545000,0.34171244,106220.0,106210.0,0.00128]
[1762770545293,0.34171244,106220.0,106210.0,0.00198013]
[1762770551040,0.31713244,106220.0,106210.0,0.00198013]
[1762770553687,0.30553016,106220.0,106210.0,0.00198013]
[1762770555942,0.30553016,106220.0,106210.0,0.00085565]
[1762770556148,0.28095016,106220.0,106210.0,0.01326565]
[1762770556346,0.30553016,106220.0,106210.0,0.00085565]
[1762770557745,0.28095016,106220.0,106210.0,0.00085565]
[1762770557949,0.28095016,106220.0,106210.0,0.01326565]
[1762770559438,0.26531016,106220.0,106210.0,0.05313565]
[1762770561046,0.25403016,106220.0,106210.0,0.24144183]
[1762770565155,0.25403016,106220.0,106210.0,0.05313565]
[1762770565338,0.25403016,106220.0,106210.0,0.24144183]
[1762770566959,0.25403016,106220.0,106210.0,0.05313565]
[1762770567744,0.25403016,106220.0,106210.0,0.02892565]
[1762770567943,0.25403016,106220.0,106210.0,0.05261565]
[1762770568958,0.28230085,106220.0,106210.0,0.05261565]
[1762770569643,0.29984393,106220.0,106210.0,0.05261565]
[1762770571113,0.29984393,106220.0,106210.0,0.02892565]
[1762770571350,0.33822393,106220.0,106210.0,0.01326565]
[1762770571928,0.31495393,106220.0,106210.0,0.01326565]
[1762770572359,0.31495393,106220.0,106210.0,0.03695565]
[1762770574874,0.29984393,106220.0,106210.0,0.02984565]
[1762770575510,0.31495393,106220.0,106210.0,0.01326565]
[1762770575732,0.67015332,106220.0,106210.0,0.00085565]
[1762770576814,0.33822393,106220.0,106210.0,0.00085565]
[1762770576970,0.67015332,106220.0,106210.0,0.00085565]
[1762770577618,0.7387161,106220.0,106210.0,0.00085565]
[1762770577804,0.67015332,106220.0,106210.0,0.00085565]
[1762770579395,0.33822393,106220.0,106210.0,0.00085565]
[1762770579531,0.67015332,106220.0,106210.0,0.00085565]
[1762770581839,0.64688332,106220.0,106210.0,0.00085565]
[1762770582047,0.67015332,106220.0,106210.0,0.00085565]
[1762770586405,0.63177332,106220.0,106210.0,0.02990565]
[1762770586623,0.63177332,106220.0,106210.0,0.05359565]
[1762770587316,0.67015332,106220.0,106210.0,0.01332565]
[1762770587524,0.67015332,106220.0,106210.0,0.00085565]
[1762770589672,0.63177332,106220.0,106210.0,0.05359565]
[1762770591205,0.29984393,106220.0,106210.0,0.05359565]
[1762770591422,0.67015332,106220.0,106210.0,0.00085565]
[1762770591625,0.33822393,106220.0,106210.0,0.00085565]
[1762770591751,0.67015332,106220.0,106210.0,0.00085565]
[1762770592633,0.64688332,106220.0,106210.0,0.00085565]
[1762770592870,0.64688332,106220.0,106210.0,0.05302565]
[1762770592871,0.29984393,106220.0,106210.0,0.05302565]
[1762770594191,0.29984393,106220.0,106210.0,0.02895565]
[1762770594397,0.29984393,106220.0,106210.0,0.21726183]
[1762770594600,0.29984393,106220.0,106210.0,0.24133183]
[1762770594807,0.29984393,106220.0,106210.0,0.05302565]
[1762770595049,0.29984393,106220.0,106210.0,0.24133183]
[1762770595276,0.29984393,106220.0,106210.0,0.05302565]
[1762770595476,0.29984393,106220.0,106210.0,0.24133183]
[1762770597165,0.29984578,106220.0,106210.0,0.24133183]
[1762770597875,0.29984578,106220.0,106210.0,0.05302565]
[1762770598088,0.29984578,106220.0,106210.0,0.24133183]
[1762770599670,0.64711517,106220.0,106210.0,0.00085565]
[1762770599874,0.67020517,106220.0,106210.0,0.00085565]
[1762770600738,0.33827578,106220.0,106210.0,0.00085565]
[1762770600952,0.67020517,106220.0,106210.0,0.00085565]
[1762770601173,0.64711517,106220.0,106210.0,0.00085565]
[1762770601416,0.33827578,106220.0,106210.0,0.00085565]
[1762770601645,0.67020517,106220.0,106210.0,0.00085565]
[1762770603406,0.14998733,106220.0,106210.0,0.18916183]
[1762770603627,0.67020517,106220.0,106210.0,0.18916183]
[1762770603834,0.48191672,106220.0,106210.0,0.18916183]
[1762770604312,0.64711517,106220.0,106210.0,0.18916183]
[1762770604730,0.67020517,106220.0,106210.0,0.18916183]
[1762770605351,0.45882672,106220.0,106210.0,0.20100183]
[1762770605528,0.11155733,106220.0,106210.0,0.24133183]
[1762770608030,0.11155733,106220.0,106210.0,0.57326122]
[1762770608233,0.08328664,106220.0,106210.0,0.57326122]
[1762770609291,0.27157509,106220.0,106210.0,0.57326122]
[1762770609711,0.08328664,106220.0,106210.0,0.57326122]
[1762770610533,0.27157509,106220.0,106210.0,0.57326122]
[1762770610784,0.27157509,106220.0,106210.0,0.24133183]
[1762770611018,0.08328664,106220.0,106210.0,0.24133183]
[1762770613883,0.08329674,106220.0,106210.0,0.24133183]
[1762770615333,0.25403016,106220.0,106210.0,0.24133183]
[1762770616996,0.25403016,106220.0,106210.0,0.05302565]
[1762770617560,0.25403016,106220.0,106210.0,0.24133183]
[1762770617764,0.25403016,106220.0,106210.0,0.05302565]
[1762770618022,0.58595955,106220.0,106210.0,0.05302565]
[1762770619397,0.58595955,106220.0,106210.0,0.24133183]
[1762770619963,0.58595955,106220.0,106210.0,0.05302565]
[1762770620577,0.25403016,106220.0,106210.0,0.24133183]
[1762770620775,0.58595955,106220.0,106210.0,0.24133183]
[1762770620993,0.25403016,106220.0,106210.0,0.24133183]
[1762770623431,0.13574171,106220.0,106210.0,0.24133183]
[1762770623811,0.32403016,106220.0,106210.0,0.24133183]
[1762770624063,0.13574171,106220.0,106210.0,0.24133183]
[1762770624236,0.32403016,106220.0,106210.0,0.24133183]
[1762770625057,0.32403016,106220.0,106210.0,0.05302565]
[1762770625789,0.32403016,106220.0,106210.0,0.24133183]
[1762770626904,0.13574171,106220.0,106210.0,0.24133183]
[1762770627113,0.32403016,106220.0,106210.0,0.24133183]
[1762770628490,0.65595955,106220.0,106210.0,0.24133183]
[1762770629567,0.32403016,106220.0,106210.0,0.24133183]
[1762770629772,0.35230138,106220.0,106210.0,0.24133183]
[1762770630717,0.35230138,106220.0,106210.0,0.05302565]
[1762770631117,0.35230138,106220.0,106210.0,0.24133183]
[1762770631788,0.68423077,106220.0,106210.0,0.24133183]
[1762770631989,0.68423077,106220.0,106210.0,0.05302565]
[1762770632127,0.68423077,106220.0,106210.0,0.24133183]
[1762770633195,0.68423077,106220.0,106210.0,0.05302565]
[1762770633372,0.35230138,106220.0,106210.0,0.24133183]
[1762770633601,0.68423077,106220.0,106210.0,0.24133183]
[1762770633807,0.35230138,106220.0,106210.0,0.24133183]
[1762770634005,0.68423077,106220.0,106210.0,0.24133183]
[1762770634788,0.35230138,106220.0,106210.0,0.24133183]
[1762770637930,0.32403016,106220.0,106210.0,0.24133183]
[1762770639525,0.32213016,106220.0,106210.0,0.05302565]
[1762770639724,0.32213016,106220.0,106210.0,0.24133183]
[1762770639928,0.32213016,106220.0,106210.0,0.05302565]
[1762770641148,0.33741016,106220.0,106210.0,0.01269565]
[1762770641326,0.69252531,106220.0,106210.0,0.00085565]
[1762770641527,0.36568154,106220.0,106210.0,0.00085565]
[1762770641730,0.38886154,106220.0,106210.0,0.00085565]
[1762770642337,0.69761669,106220.0,106210.0,0.00085565]
[1762770642740,0.69761669,106220.0,106210.0,0.01217565]
[1762770643472,0.36568154,106220.0,106210.0,0.01217565]
[1762770645906,0.36568154,106220.0,106210.0,0.03553565]
[1762770646850,0.36568154,106220.0,106210.0,0.01217565]
[1762770649230,0.36568154,106220.0,106210.0,0.20048183]
[1762770649563,0.35040154,106220.0,106210.0,0.23907183]
[1762770649727,0.35040154,106220.0,106210.0,0.02740565]
[1762770651874,0.36568154,106220.0,106210.0,0.02740565]
[1762770652680,0.35040154,106220.0,106210.0,0.05082565]
[1762770653536,0.35040154,106220.0,106210.0,0.02740565]
[1762770655463,0.38934154,106220.0,106210.0,0.01217565]
[1762770655703,0.72127669,106220.0,106210.0,0.00085565]
[1762770656709,0.72174665,106220.0,106210.0,0.00085565]
[1762770659162,0.72127669,106220.0,106210.0,0.00085565]
[1762770659913,0.75745897,106220.0,106210.0,0.00085565]
[1762770661434,0.75792893,106220.0,106210.0,0.00085565]
[1762770662258,0.42599378,106220.0,106210.0,0.00085565]
[1762770662663,0.75792893,106220.0,106210.0,0.00085565]
[1762770664560,0.75792893,106220.0,106210.0,0.00085565]
[1762770676244,0.75792893,106220.0,106210.0,0.000772]
[1762770676577,0.85603066,106220.0,106210.0,0.000772]
[1762770677135,0.75792893,106220.0,106210.0,0.000772]
[1762770677946,0.42599378,106220.0,106210.0,0.000772]
[1762770678164,0.75792893,106220.0,106210.0,0.000772]
[1762770679840,0.75792926,106220.0,106210.0,0.000772]
[1762770680051,0.75745897,106220.0,106210.0,0.000772]
[1762770680231,0.85485549,106220.0,106210.0,0.000772]
[1762770681004,0.75745897,106220.0,106210.0,0.000772]
[1762770681203,0.75792891,106220.0,106210.0,0.000772]
[1762770681608,0.42599376,106220.0,106210.0,0.000772]
[1762770681822,0.75792891,106220.0,106210.0,0.000772]
[1762770682515,0.75745897,106220.0,106210.0,0.000772]
[1762770682720,0.85603064,106220.0,106210.0,0.000772]
[1762770684104,0.85603062,106220.0,106210.0,0.000772]
[1762770684311,0.85603071,106220.0,106210.0,0.000772]
[1762770684732,0.85603062,106220.0,106210.0,0.000772]
[1762770685394,0.75792889,106220.0,106210.0,0.000772]
[1762770685562,0.42599374,106220.0,106210.0,0.000772]
[1762770685951,0.75792889,106220.0,106210.0,0.000772]
[1762770686387,0.75792889,106220.0,106210.0,0.052632]
[1762770686388,0.38895374,106220.0,106210.0,0.052632]
[1762770686590,0.35230154,106220.0,106210.0,0.24093818]
[1762770686911,0.35230154,106220.0,106210.0,0.052632]
[1762770687119,0.82233842,106220.0,106210.0,0.000772]
[1762770687318,0.8585207,106220.0,106210.0,0.000772]
[1762770687561,0.52658555,106220.0,106210.0,0.000772]
[1762770687786,0.8585207,106220.0,106210.0,0.000772]
[1762770688841,0.76041897,106220.0,106210.0,0.000772]
[1762770689063,0.42848382,106220.0,106210.0,0.000772]
[1762770689217,0.76041897,106220.0,106210.0,0.000772]
[1762770692425,0.76088898,106220.0,106210.0,0.000772]
[1762770692863,0.73718898,106220.0,106210.0,0.000772]
[1762770693067,0.38895383,106220.0,106210.0,0.052632]
[1762770693266,0.38895396,106220.0,106210.0,0.052632]
[1762770694122,0.35230154,106220.0,106210.0,0.052632]
[1762770694338,0.35230154,106220.0,106210.0,0.24093818]
[1762770697741,0.32403016,106220.0,106210.0,0.57287702]
[1762770697925,0.32403016,106220.0,106210.0,0.24093818]
[1762770698319,0.13574171,106220.0,106210.0,0.57287702]